Cogmind - Beta 11 @@@ ROGUE MODE // 2022.04.24 @ 17:10:59 Player: kasaphescent Result: Destroyed by G-67 Veteran with Field Laser Performance ------------- Evolutions (7) 3500 Regions Visited (15) 3000 Robots Destroyed (187) 935 Value Destroyed (8252) 8252 Prototype IDs (21) 420 Alien Tech Used (1) 200 Bonus (2146) 2146 TOTAL SCORE: 18453 Bonus ------- High Alert Combat Kills 291 Follower Combat Kills 1415 Entered DSFs 500 Friendly Fire -60 Cogmind --------- Core Integrity 0/1300 Matter 237/300 Energy 200/200 System Corruption 18% Temperature Warm (156) Movement Walking (120) Location -3/Research Parts ------- > --- POWER (2) -------- Micro Antimatter Reactor Micro Antimatter Reactor > --- PROPULSION (6) --- Flexi-carbon Leg Myomer Leg Myomer Leg Compact Wheel > --- UTILITY (10) ----- Advanced Coolant Injector Improved Salvage Targeting Computer Advanced Target Analyzer > --- WEAPON (3) ------- Gamma Rifle Gamma Rifle Hardcell Cannon > --- INVENTORY (5) ---- Matter Compressor (250) Transdimensional Reconstructor Heavy Linear Accelerator Enhanced Force Lance Peak State ------------ > --- POWER ------------ Neutrino Core Micro Antimatter Reactor > --- PROPULSION ------- Biometal Medium Treads Armored Huge Wheel Armored Huge Wheel > --- UTILITY ---------- Advanced Heat Sink High-capacity Storage Unit Enhanced Optical Array Long-range Sensor Array Experimental Targeting Computer Improved Kinecellerator Heavy Armor Plating Advanced Thermal Shield Force Field > --- WEAPON ----------- Linear Accelerator Phasing Sabre Phasing Sabre > --- INVENTORY -------- Armored Huge Wheel Armored Huge Wheel Armored Huge Wheel Matter Compressor Tractor Beam Transdimensional Reconstructor Hardcell Cannon Hardcell Cannon Hardcell Cannon Heavy Linear Accelerator Grenade Launcher Phasing Sabre Phasing Sabre Enhanced Force Lance Enhanced Force Lance [Rating: 117] Favorites ----------- Power Heavy Deuterium Engine Engine Heavy Deuterium Engine Power Core Neutrino Core Reactor Light Antimatter Reactor Propulsion Light Treads Treads Light Treads Leg Carbon-fiber Leg Wheel Armored Huge Wheel Hover Unit Improved Gyrokinetic Inverter Flight Unit VTOL Module Utility Advanced Heat Sink Device Advanced Heat Sink Storage High-capacity Storage Unit Processor Experimental Targeting Computer Hackware Advanced Hacking Suite Protection Medium Armor Plating Weapon Magnetic Acceleration Cannon Energy Gun Wave Gun Energy Cannon Advanced Plasma Cannon Ballistic Gun Light Assault Rifle Ballistic Cannon Magnetic Acceleration Cannon Launcher Grenade Launcher Slashing Weapon Phasing Sabre Piercing Weapon Enhanced Force Lance Build | -11 -10 -9 -8 -8 -7 -7 -6 -5 -5 -5 -5 -4 -4 -4 -3 ------- Run | Scr Mat Mat Mat Sto Fac DSF Fac Fac Upp Upp Zhi Pro Fac Ext Res Slots Evolved 14 | . . 2 2 . 2 . 2 2 . . . . 2 . 2 Power 1 | . . . . . . . . . . . . . 1 . . Propulsion 4 | . . 2 . . 1 . 1 . . . . . . . . Utility 8 | . . . 2 . 1 . 1 2 . . . . . . 2 Weapon 1 | . . . . . . . . . . . . . 1 . . Parts Attached 216 | 6 6 21 3 15 2 4 27 15 13 10 5 5 23 21 40 Power 18 | 1 . 2 . . . 1 3 . . . . . 2 5 4 Engine 8 | 1 . 2 . . . 1 3 . . . . . . . 1 Core 1 | . . . . . . . . . . . . . . 1 . Reactor 9 | . . . . . . . . . . . . . 2 4 3 Propulsion 66 | 2 2 12 . 7 1 3 10 3 4 4 . 1 6 2 9 Treads 24 | . . 8 . 2 . 3 8 2 . . . . . . 1 Leg 8 | 2 . . . . . . . . 1 . . . 1 . 4 Wheel 32 | . 2 4 . 5 1 . 2 1 3 4 . . 4 2 4 Hover 1 | . . . . . . . . . . . . . 1 . . Flight 1 | . . . . . . . . . . . . 1 . . . Utility 69 | 1 3 . 3 5 1 . 9 11 5 2 3 2 6 6 12 Device 33 | . 1 . . 3 . . 1 8 5 2 1 1 3 4 4 Storage 5 | 1 2 . 1 . . . . . . . . . . . 1 Processor 8 | . . . 1 . . . 2 . . . . . 1 1 3 Hackware 1 | . . . . . . . . . . . 1 . . . . Protection 22 | . . . 1 2 1 . 6 3 . . 1 1 2 1 4 Artifact . | . . . . . . . . . . . . . . . . Weapon 63 | 2 1 7 . 3 . . 5 1 4 4 2 2 9 8 15 Energy Gun 6 | 1 . . . . . . . . 1 . . . 2 . 2 Energy Cannon 7 | . . . . . . . . . 2 2 1 2 . . . Ballistic Gun 7 | 1 . 4 . . . . . . . . 1 . 1 . . Ballistic Cannon 25 | . 1 3 . 2 . . 4 1 1 . . . 5 . 8 Launcher 4 | . . . . 1 . . . . . 2 . . . . 1 Special Weapon . | . . . . . . . . . . . . . . . . Impact Weapon . | . . . . . . . . . . . . . . . . Slashing Weapon 12 | . . . . . . . 1 . . . . . 1 8 2 Piercing Weapon 2 | . . . . . . . . . . . . . . . 2 Special Melee Weapon . | . . . . . . . . . . . . . . . . Unidentified Prototypes 11 | . . 2 . 1 . . 2 . . . 3 . 3 . . Parts Lost 71 | . . 1 . . . 1 8 5 8 1 . 2 11 5 29 Power 8 | . . . . . . . . . . . . . 3 1 4 Propulsion 24 | . . . . . . 1 3 3 3 1 . 1 4 1 7 Utility 25 | . . . . . . . 4 1 3 . . . 2 3 12 Weapon 14 | . . 1 . . . . 1 1 2 . . 1 2 . 6 Highest Loss Streak 20 | . . 1 . . . 1 2 1 4 1 . 2 10 2 20 To Critical Strikes . | . . . . . . . . . . . . . . . . Average Slot Usage (%) 89 | . 92 99 100 99 96 100 94 88 84 93 92 99 90 81 63 Engine 5 | . 14 11 9 9 7 7 5 5 5 5 5 5 3 . . Reactor 1 | . . . . . . . . . . . . . 2 8 3 Treads 12 | . . 21 18 18 15 22 25 21 2 . . . . . . Leg 1 | . 1 . . . . . . . 2 5 5 5 3 . 4 Wheel 14 | . 26 22 18 18 23 15 8 4 18 23 29 27 18 15 8 Device 12 | . 6 11 9 9 7 7 6 13 25 28 22 17 21 19 12 Storage 6 | . 15 11 9 9 7 7 6 5 5 5 5 5 5 5 3 Processor 8 | . . . 9 9 7 7 13 11 11 11 11 11 10 10 7 Protection 6 | . . . 9 8 11 15 12 11 . . 2 4 2 5 4 Ballistic Gun 2 | . 14 9 . . . . . . . . 2 5 3 . . Ballistic Cannon 9 | . 11 11 18 17 15 15 12 11 6 5 . . 3 6 3 Slashing Weapon 1 | . . . . . . . . . . . . . . 8 6 Naked Turns 1 | . . . . . . . . . . . . . . . 1 Heaviest Build 126 | 10 89 99 106 66 73 74 83 89 74 74 73 72 106 100 126 Greatest Support 90 | 20 32 32 32 32 30 30 80 80 70 70 62 62 84 84 90 Greatest Overweight (x) 4 | 3 2 4 3 3 2 3 3 3 2 1 1 1 3 1 3 Average Overweight (x) 1 | . 1 2 2 2 2 2 2 1 . 1 . 1 1 . . Largest Inventory Capacity 25 | 8 25 25 25 20 20 20 20 20 20 20 20 20 20 20 20 Average Capacity 20 | 7 21 25 23 20 20 20 20 20 20 20 20 20 20 20 16 Most Carried 25 | 6 24 25 24 20 19 20 20 20 18 16 19 18 20 20 20 Average Carried 18 | 4 17 24 21 19 18 18 19 18 12 12 16 17 17 19 15 Final Capacity 25 | 8 25 25 20 20 20 20 20 20 20 20 20 20 20 20 5 Final Carried 25 | 6 24 25 20 20 18 20 19 18 12 13 18 18 20 20 5 Class Distribution -------------------- 55% | Mutant 34% | Scavenger-Mutant 5% | Scavenger-Gunner 3% | Commander-Mutant Dominant Class ---------------- Mutant | -10/Materials Mutant | -9/Materials Mutant | -8/Materials Scavenger-Mutant | -8/Storage Scavenger-Mutant | -7/Factory Mutant | -7/DSF Mutant | -6/Factory Mutant | -5/Factory Scavenger-Mutant | -5/Upper Caves Scavenger-Mutant | -5/Upper Caves Scavenger-Mutant | -5/Zhirov Scavenger-Mutant | -4/Proximity Caves Scavenger-Gunner | -4/Factory Scavenger-Mutant | -4/Extension Scavenger-Mutant | -3/Research Resources | -11 -10 -9 -8 -8 -7 -7 -6 -5 -5 -5 -5 -4 -4 -4 -3 ----------- Run | Scr Mat Mat Mat Sto Fac DSF Fac Fac Upp Upp Zhi Pro Fac Ext Res Matter Collected 7036 | 230 241 763 108 470 . 237 1444 671 514 163 99 87 622 614 773 Remotely 412 | . . . . 73 . . . 121 218 . . . . . . Salvage Created 8540 | . 345 821 . 520 . 96 1485 490 493 407 383 218 516 1132 1634 Parts 353 | . 18 49 . 27 . 6 74 24 9 24 5 4 24 32 57 Haulers Intercepted 6 | . 2 2 . 1 . 1 . . . . . . . . . Recyclers Shooed 6 | . 1 2 . 1 . . 1 . . . . . . . 1 Parts Field Recycled . | . . . . . . . . . . . . . . . . Retrieved Matter . | . . . . . . . . . . . . . . . . Parts Self-Destructed 34 | . . . . . . . . . 9 20 3 2 . . . Prevented 5 | . . . . . . . . . 5 . . . . . . Kills | -11 -10 -9 -8 -8 -7 -7 -6 -5 -5 -5 -5 -4 -4 -4 -3 ------- Run | Scr Mat Mat Mat Sto Fac DSF Fac Fac Upp Upp Zhi Pro Fac Ext Res Combat Hostiles Destroyed 152 | . 7 19 . 11 . 3 27 15 7 10 . 3 10 17 23 Melee 18 | . . . . . . . 1 . . . . . 1 11 5 Guns 14 | . 1 6 . . . . . . . . . 1 6 . . Cannons 105 | . 6 13 . 11 . 3 26 15 7 3 . 2 3 6 10 AOE 12 | . . . . . . . . . . 7 . . . . 5 Classes Destroyed 20 | . 6 2 . . . . 6 1 2 . . . 1 1 1 Worker 3 | . 1 1 . . . . 1 . . . . . . . . Builder 6 | . . . . . . . 3 . . . . . 1 2 . Tunneler 1 | . 1 . . . . . . . . . . . . . . Hauler 6 | . 2 2 . 1 . 1 . . . . . . . . . Recycler 12 | . 1 2 . 2 . . 3 . . . . . 1 . 3 Minesweeper 1 | . . . . . . . . . 1 . . . . . . Operator 1 | . . . . . . . . . . . . . . 1 . Watcher 5 | . . 1 . 1 . . 2 . . . . . . . 1 Swarmer 34 | . 3 4 . 3 . 3 . 2 . 8 . 2 4 . 5 Saboteur 1 | . . . . . . . 1 . . . . . . . . Grunt 58 | . 4 9 . 3 . . 15 6 5 . . . 2 10 4 Brawler 1 | . . . . . . . . . . . . . . . 1 Duelist 1 | . . . . . . . . 1 . . . . . . . Sentry 26 | . . 6 . 5 . . 3 2 . . . 1 1 4 4 Specialist 3 | . . . . . . . 2 . . . . . . . 1 Hunter 3 | . . . . . . . 1 . . . . . . . 2 Programmer 19 | . . . . . . . 4 4 2 2 . . 2 . 5 Heavy 2 | . . . . . . . 1 . . . . . . . 1 Behemoth 1 | . . . . . . . . . . . . . 1 . . Decomposer 2 | . . . . . . . . . . 2 . . . . . Packrat 2 | . . . . . . . . . . 2 . . . . . Samaritan 3 | . . . . . . . . . 3 . . . . . . Thug 1 | . . . . . . . . . . . . . . 1 . Butcher 2 | . . . . . . . . . . . . . . 2 . Best Kill Streak 7 | . 3 4 . 4 . 4 5 4 4 4 . 2 4 7 5 Combat Bots Only 7 | . 3 3 . 4 . 3 4 4 4 4 . 2 4 7 5 Max Kills in Single Turn 4 | . 1 1 . 1 . 1 2 2 1 4 . 1 2 1 2 Gunslinging . | . . . . . . . . . . . . . . . . Exploded 4 | . . . . . . . . . . 4 . . . . 2 Melee 1 | . . . . . . . 1 . . . . . 1 1 1 Uniques/NPCs Destroyed . | . . . . . . . . . . . . . . . . Combat | -11 -10 -9 -8 -8 -7 -7 -6 -5 -5 -5 -5 -4 -4 -4 -3 -------- Run | Scr Mat Mat Mat Sto Fac DSF Fac Fac Upp Upp Zhi Pro Fac Ext Res Damage Taken 16802 | . 196 559 . 436 . 173 2639 1779 936 219 . 317 1341 1776 6431 Core 2560 | . 53 62 . 44 . 29 200 177 155 34 . 75 202 229 1300 Absorbed by Shields 484 | . . . . . . . . . . . . . 213 . 271 Redirected to Shielding 205 | . . . . . . . . . . . . 90 31 84 . Regen/Repaired (Parts) 618 | . . . . . . . 228 390 . . . . . . . Core Remaining (%) 80 | 100 78 84 . 92 . 95 76 . . . . 55 . 62 . Volleys Fired 491 | . 34 64 . 39 . 7 116 44 44 12 9 7 31 35 49 Largest 3 | . 2 2 . 2 . 2 2 2 2 2 2 2 3 2 3 Hottest 226 | . 59 88 . 88 . 83 97 106 151 151 133 133 226 110 215 Shots Fired 893 | . 66 121 . 66 . 14 222 88 65 15 15 15 75 51 80 Gun 174 | . 34 55 . . . . . . . . 6 7 48 . 24 Cannon 712 | . 32 66 . 66 . 14 222 88 65 11 9 8 27 51 53 Launcher 7 | . . . . . . . . . . 4 . . . . 3 Special . | . . . . . . . . . . . . . . . . Kinetic 778 | . 64 121 . 66 . 14 222 88 51 3 6 7 32 51 53 Thermal 84 | . 2 . . . . . . . 14 8 9 8 43 . . Explosive 7 | . . . . . . . . . . 4 . . . . 3 Electromagnetic 24 | . . . . . . . . . . . . . . . 24 Robot Hit Streak 33 | . 5 9 . 13 . 12 33 13 13 10 16 10 19 24 9 Robot Miss Streak 4 | . 3 3 . 3 . 4 3 2 2 . 1 1 2 2 2 Penetration Max . | . . . . . . . . . . . . . . . . Secondary Targets . | . . . . . . . . . . . . . . . . Shots Hit Robots 696 | . 37 79 . 40 . 7 139 60 52 9 12 11 56 80 114 Core Hits 325 | . 19 33 . 21 . 5 69 29 20 14 7 3 20 36 49 Critical Kills . | . . . . . . . . . . . . . . . . Critical Parts Destroyed . | . . . . . . . . . . . . . . . . Critical Strikes 48 | . 1 3 . 2 . 1 9 2 4 . . . 3 11 12 Burn 1 | . . . . . . . . . . . . . 1 . . Blast 27 | . 1 3 . 2 . 1 9 2 4 . . . 1 1 3 Corrupt 3 | . . . . . . . . . . . . . . . 3 Sever 16 | . . . . . . . . . . . . . 1 10 5 Impale 1 | . . . . . . . . . . . . . . . 1 Melee Attacks 144 | . . . . . . . 3 . . . . . 3 69 69 Impact . | . . . . . . . . . . . . . . . . Slashing 124 | . . . . . . . 3 . . . . . 3 69 49 Piercing 20 | . . . . . . . . . . . . . . . 20 Sneak Attacks 18 | . . . . . . . 1 . . . . . . 12 5 Combat Hostiles 1 | . . . . . . . . . . . . . . . 1 Follow-up Attacks 13 | . . . . . . . . . . . . . . 5 8 Damage Inflicted 23019 | . 524 1423 . 907 . 197 3831 1891 1783 713 540 352 1971 3395 5492 Guns 2427 | . 197 450 . . . . . . . . 129 131 1037 . 483 Cannons 14466 | . 327 973 . 899 . 197 3511 1891 1783 296 411 221 805 1034 2118 Explosions 1141 | . . . . . . . 239 . . 417 . . . . 485 Melee 4972 | . . . . . . . 76 . . . . . 129 2361 2406 Ramming 13 | . . . . 8 . . 5 . . . . . . . . Kinetic 14132 | . 504 1423 . 899 . 197 3511 1891 1389 42 129 131 864 1034 2118 Thermal 2278 | . 20 . . . . . . . 394 254 411 221 978 . . Explosive 902 | . . . . . . . . . . 417 . . . . 485 Electromagnetic 722 | . . . . . . . 239 . . . . . . . 483 Impact . | . . . . . . . . . . . . . . . . Slashing 4172 | . . . . . . . 76 . . . . . 129 2361 1606 Piercing 800 | . . . . . . . . . . . . . . . 800 Highest Corruption 18 | . . 4 . . . . 1 4 8 9 9 9 5 5 18 Average Corruption 4 | . . 2 . . . . 1 3 7 8 9 9 4 5 15 Corruption Purged . | . . . . . . . . . . . . . . . . Corruption Blocked . | . . . . . . . . . . . . . . . . Effects 137 | . . 14 . . . . 12 12 19 9 6 11 8 28 18 Message Errors 32 | . . 3 . . . . 2 1 3 2 2 3 3 6 7 Matter Fused 31 | . . 4 . . . . 3 3 4 1 1 3 . 10 2 Heat Flow Errors 22 | . . 2 . . . . 4 4 2 1 1 1 1 4 2 Energy Discharges 15 | . . . . . . . 2 . 4 2 . . 1 5 1 Parts Rejected 2 | . . 1 . . . . . . . . . 1 . . . Data Loss (minor) 12 | . . 2 . . . . . 2 1 2 2 1 . 2 . Data Loss (major) 5 | . . . . . . . . 1 2 . . 1 . . 1 Misfires 10 | . . 1 . . . . 1 1 3 1 . 1 1 1 . Alerts 1 | . . . . . . . . . . . . . . . 1 Weapon Failures 7 | . . 1 . . . . . . . . . . 2 . 4 Overload Shots . | . . . . . . . . . . . . . . . . Overflow Damage 833 | . . 26 . 1 . . 62 39 165 28 67 49 3 123 270 Projectiles 626 | . . 26 . 1 . . 58 39 165 28 67 49 3 13 177 Explosions 4 | . . . . . . . 4 . . . . . . . . Melee 203 | . . . . . . . . . . . . . . 110 93 Knockbacks 115 | . 1 8 . 7 . 2 45 24 4 . . . 1 13 10 Impact . | . . . . . . . . . . . . . . . . Kinetic 102 | . 1 7 . 7 . 2 40 21 3 . . . 1 11 9 Secondary 13 | . . 1 . . . . 5 3 1 . . . . 2 1 Self-Inflicted Damage 4 | . . . . 4 . . . . . . . . . . . Shots . | . . . . . . . . . . . . . . . . Rammed 1 | . . . . 1 . . . . . . . . . . . Targets Rammed 2 | . . . . 1 . . 1 . . . . . . . . Kicked . | . . . . . . . . . . . . . . . . Crushed 1 | . . . . . . . 1 . . . . . . . . Highest Temperature 250 | . 56 250 . 18 . . 231 196 125 52 33 88 163 213 235 Average Temperature 63 | . 20 100 . 9 . . 76 92 35 52 33 53 34 53 70 Received Heat Transfer 3714 | . 60 240 . 180 . 9 669 318 312 . . 54 117 782 973 Effects 1 | . . 1 . . . . . . . . . . . . . Energy Bleed 1 | . . 1 . . . . . . . . . . . . . Siege Activations . | . . . . . . . . . . . . . . . . Robots Corrupted 3 | . . . . . . . . . . . . . . . 3 Combat Hostiles 3 | . . . . . . . . . . . . . . . 3 Parts Fried 3 | . . . . . . . 2 . . . . . . . 1 Impact Corruptions 1 | . . . . . . . . 1 . . . . . . . Robots Melted . | . . . . . . . . . . . . . . . . Combat Hostiles . | . . . . . . . . . . . . . . . . Parts Melted 7 | . . . . . . . . . 2 . . . 5 . . Heat Transferred 2756 | . 50 . . . . . . . 587 350 374 248 1147 . . Parts Sabotaged 2 | . . . . . . . 2 . . . . . . . . Parts Stolen . | . . . . . . . . . . . . . . . . Parts Stripped . | . . . . . . . . . . . . . . . . Power Chain Reactions 1 | . . . . . . . 1 . . . . . . . . Missiles Intercepted . | . . . . . . . . . . . . . . . . Alert | -11 -10 -9 -8 -8 -7 -7 -6 -5 -5 -5 -5 -4 -4 -4 -3 ------- Run | Scr Mat Mat Mat Sto Fac DSF Fac Fac Upp Upp Zhi Pro Fac Ext Res Peak Influence 760 | . 187 312 131 397 167 145 760 476 . . . . 229 561 437 Initial 354 | . . 39 131 55 162 116 65 354 . . . . 28 61 252 Average 213 | . 57 204 131 226 164 126 230 287 . . . . 93 288 245 Maximum Alert Level 3 | . . 1 . 1 . . 3 2 . . . . 1 2 2 Low Security (%) 48 | 100 100 45 100 32 100 100 54 5 . . . . 96 23 22 Level 1 41 | . . 54 . 67 . . 23 88 . . . . 3 62 67 Level 2 7 | . . . . . . . 12 6 . . . . . 14 10 Level 3 2 | . . . . . . . 9 . . . . . . . . Level 4 . | . . . . . . . . . . . . . . . . Level 5 . | . . . . . . . . . . . . . . . . High Security . | . . . . . . . . . . . . . . . . Max Security . | . . . . . . . . . . . . . . . . Squads Dispatched 35 | . 1 3 . 2 . 1 8 6 . . . . 5 3 6 Investigation 3 | . . . . . . . . 1 . . . . 1 . 1 Extermination 9 | . . . . . . . 4 1 . . . . 1 . 3 Reinforcement 16 | . 1 3 . 2 . 1 3 1 . . . . . 3 2 Assault 1 | . . . . . . . 1 . . . . . . . . Garrison 6 | . . . . . . . . 3 . . . . 3 . . Intercept . | . . . . . . . . . . . . . . . . Searches Triggered . | . . . . . . . . . . . . . . . . Construction Impeded 1 | . . . . . . . . . . . . . . 1 . Haulers Reinforced 1 | . . . . . . . . 1 . . . . . . . Active Scanning Responses . | . . . . . . . . . . . . . . . . Cargo Convoy Interrupts . | . . . . . . . . . . . . . . . . Stealth | -11 -10 -9 -8 -8 -7 -7 -6 -5 -5 -5 -5 -4 -4 -4 -3 --------- Run | Scr Mat Mat Mat Sto Fac DSF Fac Fac Upp Upp Zhi Pro Fac Ext Res Distress Signals 12 | . . 2 . 2 . . 3 1 . . . . . 4 . Communications Jammed . | . . . . . . . . . . . . . . . . Distress Signals . | . . . . . . . . . . . . . . . . Times Spotted 253 | . 14 29 . 21 . 5 47 26 8 10 . 3 15 46 29 Peak Tracking Total 8 | . 4 5 . 3 . 4 5 7 4 4 . 3 4 8 6 Tactical Retreats 15 | . 1 . . 1 . . 5 3 1 . . . 2 2 . Traps | -11 -10 -9 -8 -8 -7 -7 -6 -5 -5 -5 -5 -4 -4 -4 -3 ------- Run | Scr Mat Mat Mat Sto Fac DSF Fac Fac Upp Upp Zhi Pro Fac Ext Res Traps Triggered 12 | . . 4 . . . . 2 1 . . . . 1 3 1 Indirectly . | . . . . . . . . . . . . . . . . Trap Hack Attempts . | . . . . . . . . . . . . . . . . Triggered . | . . . . . . . . . . . . . . . . Disarmed . | . . . . . . . . . . . . . . . . Reprogrammed . | . . . . . . . . . . . . . . . . Reused . | . . . . . . . . . . . . . . . . Traps Extracted . | . . . . . . . . . . . . . . . . Installed 2 | . . . . . . . . . 2 . . . . . . Triggered 2 | . . . . . . . . . 2 . . . . . . Machines | -11 -10 -9 -8 -8 -7 -7 -6 -5 -5 -5 -5 -4 -4 -4 -3 ---------- Run | Scr Mat Mat Mat Sto Fac DSF Fac Fac Upp Upp Zhi Pro Fac Ext Res Machines Disabled 29 | . . . . 6 . . 18 1 . . . . . 4 . Max in Single Turn 6 | . . . . 1 . . 6 1 . . . . . 1 . Garrison Access 2 | . . . . . . . 2 . . . . . . . . Energy Cycler 1 | . . . . . . . . . . . . . . 1 . Machines Sabotaged . | . . . . . . . . . . . . . . . . Garrisons Compromised . | . . . . . . . . . . . . . . . . Overloaded Fab Kills . | . . . . . . . . . . . . . . . . Hacking | -11 -10 -9 -8 -8 -7 -7 -6 -5 -5 -5 -5 -4 -4 -4 -3 --------- Run | Scr Mat Mat Mat Sto Fac DSF Fac Fac Upp Upp Zhi Pro Fac Ext Res Machines Accessed 38 | . . . . 7 1 . 12 4 . . 3 . 6 3 2 Terminals 23 | . . . . 7 1 . 6 1 . . . . 4 3 1 Fabricators 3 | . . . . . . . 1 . . . . . 1 . 1 Repair Stations 4 | . . . . . . . 2 2 . . . . . . . Recycling Units 1 | . . . . . . . 1 . . . . . . . . Scanalyzers . | . . . . . . . . . . . . . . . . Garrison Access 4 | . . . . . . . 2 1 . . . . 1 . . Total Hacks 98 | . . . . 19 1 . 27 11 . . 13 . 13 11 3 Successful 51 | . . . . 12 1 . 13 5 . . 13 . 4 3 . Failed 47 | . . . . 7 . . 14 6 . . . . 9 8 3 Catastrophic 6 | . . . . . . . 4 1 . . . . 1 . . Database Lockouts . | . . . . . . . . . . . . . . . . Manual 32 | . . . . 10 . . 10 . . . . . 4 8 . Terminals 59 | . . . . 19 1 . 16 2 . . . . 9 11 1 Fabricators 4 | . . . . . . . 1 . . . . . 1 . 2 Repair Stations 10 | . . . . . . . 4 6 . . . . . . . Recycling Units 4 | . . . . . . . 4 . . . . . . . . Scanalyzers . | . . . . . . . . . . . . . . . . Garrison Access 8 | . . . . . . . 2 3 . . . . 3 . . Terminal Hacks 28 | . . . . 8 1 . 1 1 . . 13 . 2 2 . Record 2 | . . . . . . . . . . . 1 . 1 . . Part Schematic 4 | . . . . . . . . . . . 4 . . . . Robot Analysis 4 | . . . . . . . . . . . 4 . . . . Prototype ID Bank 4 | . . . . . . . . . . . 4 . . . . Open Door 3 | . . . . 2 . . . . . . . . 1 . . Open DSF 1 | . . . . . 1 . . . . . . . . . . Level Access Points 1 | . . . . 1 . . . . . . . . . . . Unreport Threat 7 | . . . . 3 . . 1 1 . . . . . 2 . Recall Reinforcements 1 | . . . . 1 . . . . . . . . . . . Zone Layout 1 | . . . . 1 . . . . . . . . . . . Fabricator Hacks 1 | . . . . . . . . . . . . . 1 . . Build 1 | . . . . . . . . . . . . . 1 . . Repair Station Hacks 8 | . . . . . . . 4 4 . . . . . . . Scan Component 4 | . . . . . . . 2 2 . . . . . . . Repair 4 | . . . . . . . 2 2 . . . . . . . Recycling Unit Hacks 2 | . . . . . . . 2 . . . . . . . . Process 1 | . . . . . . . 1 . . . . . . . . Retrieve Matter 1 | . . . . . . . 1 . . . . . . . . Scanalyzer . | . . . . . . . . . . . . . . . . Garrison Access Hacks 2 | . . . . . . . 2 . . . . . . . . Seal Access 2 | . . . . . . . 2 . . . . . . . . Unauthorized Hacks 10 | . . . . 4 . . 4 . . . . . 1 1 . Terminals 10 | . . . . 4 . . 4 . . . . . 1 1 . Assimilate 1 | . . . . . . . 1 . . . . . . . . Botnet 9 | . . . . 4 . . 3 . . . . . 1 1 . Fabricators . | . . . . . . . . . . . . . . . . Repair Stations . | . . . . . . . . . . . . . . . . Recycling Units . | . . . . . . . . . . . . . . . . Scanalyzers . | . . . . . . . . . . . . . . . . Garrison Access . | . . . . . . . . . . . . . . . . Data Cores Recovered . | . . . . . . . . . . . . . . . . Used . | . . . . . . . . . . . . . . . . Hacking Detections 29 | . . . . 5 . . 10 4 . . . . 5 3 2 Full Trace Events 3 | . . . . . . . . 1 . . . . 1 . 1 Feedback Events . | . . . . . . . . . . . . . . . . Feedback Blocked . | . . . . . . . . . . . . . . . . Robot Schematics Acquired . | . . . . . . . . . . . . . . . . Robots Built . | . . . . . . . . . . . . . . . . Authchips . | . . . . . . . . . . . . . . . . Time . | . . . . . . . . . . . . . . . . Total Robot Build Rating . | . . . . . . . . . . . . . . . . Part Schematics Acquired 4 | . . . . . . . . . . . 4 . . . . Parts Built 2 | . . . . . . . . . . . . . 2 . . Authchips . | . . . . . . . . . . . . . . . . Time 69 | . . . . . . . . . . . . . 69 . . Total Part Build Rating 18 | . . . . . . . . . . . . . 18 . . Parts Repaired 4 | . . . . . . . 2 2 . . . . . . . Time 122 | . . . . . . . 40 82 . . . . . . . Parts Recycled . | . . . . . . . . . . . . . . . . Recycled Matter 521 | . . . . . . . 521 . . . . . . . . Retrieved Matter 585 | . . . . . . . 585 . . . . . . . . Retrieved Components . | . . . . . . . . . . . . . . . . Parts Scanalyzed . | . . . . . . . . . . . . . . . . Part Schematics Acquired . | . . . . . . . . . . . . . . . . Parts Damaged . | . . . . . . . . . . . . . . . . Bothacking | -11 -10 -9 -8 -8 -7 -7 -6 -5 -5 -5 -5 -4 -4 -4 -3 ------------ Run | Scr Mat Mat Mat Sto Fac DSF Fac Fac Upp Upp Zhi Pro Fac Ext Res Used RIF Installer . | . . . . . . . . . . . . . . . . Robots Hacked . | . . . . . . . . . . . . . . . . Non-combat . | . . . . . . . . . . . . . . . . Combat . | . . . . . . . . . . . . . . . . Robot Hacks Applied . | . . . . . . . . . . . . . . . . Relay Couplers Released . | . . . . . . . . . . . . . . . . Fabnet Peak Effective % . | . . . . . . . . . . . . . . . . Robots Rewired 23 | . . . . . . . . . . . . . . 23 . Allies Hacked 1 | . . . . . . . . . . . . . . 1 . Hacks Repelled . | . . . . . . . . . . . . . . . . Allies | -11 -10 -9 -8 -8 -7 -7 -6 -5 -5 -5 -5 -4 -4 -4 -3 -------- Run | Scr Mat Mat Mat Sto Fac DSF Fac Fac Upp Upp Zhi Pro Fac Ext Res Total Allies 38 | . . . . 10 . . 1 . . . . . . 27 . Largest Group 12 | . . . . 10 9 9 1 . . . . . . 12 . Highest-Rated Group 507 | . . . . 173 157 157 26 . . . . . . 507 . Highest-Rated Ally 51 | . . . . 29 29 29 26 . . . . . . 51 . Total Orders . | . . . . . . . . . . . . . . . . Ally Attacks 238 | . . . . 40 . 35 . . . . . . . 163 . Total Damage 5486 | . . . . 464 . 398 . . . . . . . 4624 . Kills 46 | . . . . 9 . 4 . . . . . . . 33 . Allies Corrupted . | . . . . . . . . . . . . . . . . Allies Melted . | . . . . . . . . . . . . . . . . Intel | -11 -10 -9 -8 -8 -7 -7 -6 -5 -5 -5 -5 -4 -4 -4 -3 ------- Run | Scr Mat Mat Mat Sto Fac DSF Fac Fac Upp Upp Zhi Pro Fac Ext Res Robot Analysis Total 4 | . . . . . . . . . . . 4 . . . . Derelict Logs Recovered 3 | . . . . . . . . . 1 1 . 1 . . . Drone Launches . | . . . . . . . . . . . . . . . . Drone Recoveries . | . . . . . . . . . . . . . . . . Exploration | -11 -10 -9 -8 -8 -7 -7 -6 -5 -5 -5 -5 -4 -4 -4 -3 ------------- Run | Scr Mat Mat Mat Sto Fac DSF Fac Fac Upp Upp Zhi Pro Fac Ext Res Turns Passed 10822 | 65 713 1133 81 686 14 224 2822 753 598 282 193 301 680 1234 1043 Spaces Moved 6302 | 38 458 609 53 377 11 154 1719 313 422 205 167 259 430 599 488 Core 14 | 13 . . . . . . . . . . . . . . 1 Treads 114 | . . . . . . . 49 65 . . . . . . . Legs 178 | 25 36 . . . . . . . . . . . . . 117 Wheels 5996 | . 422 609 53 377 11 154 1670 248 422 205 167 259 430 599 370 Hover . | . . . . . . . . . . . . . . . . Flight . | . . . . . . . . . . . . . . . . Fastest Speed 50 | 50 115 130 130 115 110 110 120 130 95 103 88 103 100 100 50 Average Speed 122 | 125 121 135 139 128 110 123 130 146 106 108 93 103 112 111 118 Slowest Speed 242 | 200 130 145 145 130 110 125 240 242 130 110 103 105 125 115 145 Overloaded Moves . | . . . . . . . . . . . . . . . . Propulsion Burnouts . | . . . . . . . . . . . . . . . . Robots Hopped . | . . . . . . . . . . . . . . . . Cave-ins Triggered . | . . . . . . . . . . . . . . . . Exploration Rate (%) 41 | 4 55 65 4 55 . 92 36 11 54 44 63 56 10 67 13 Regions Visited 15 Branch Regions 6 Pre-discovered Areas 1 | . . . . . . . . . . . . 1 . . . Known Exits Taken 2 | . . . . 1 1 . . . . . . . . . . Unknown Exits Taken 12 | 1 1 1 1 . . . 1 1 1 1 1 1 1 1 . Scrap Searched 4 | . . . . . . . . . 2 1 . 1 . . . Spaces Dug 67 | . . . . 5 . . 20 1 . 15 . . 5 18 3 Terrain Destroyed 210 | . 3 3 . 7 . . 58 12 10 30 1 2 19 38 27 Melee 10 | . . . . . . . 1 . . . . . . 6 3 Projectile 140 | . 3 3 . 7 . . 57 12 10 3 1 2 19 16 7 AOE 60 | . . . . . . . . . . 27 . . . 16 17 Terrain Rammed . | . . . . . . . . . . . . . . . . Walls Destroyed . | . . . . . . . . . . . . . . . . Machines Disabled . | . . . . . . . . . . . . . . . . Actions | -11 -10 -9 -8 -8 -7 -7 -6 -5 -5 -5 -5 -4 -4 -4 -3 --------- Run | Scr Mat Mat Mat Sto Fac DSF Fac Fac Upp Upp Zhi Pro Fac Ext Res Total 8370 | 52 559 823 62 521 13 173 2082 517 507 247 188 276 572 1013 765 Wait 725 | 3 25 81 . 70 1 3 168 140 23 17 1 5 43 38 107 Move 6287 | 37 457 608 52 376 10 153 1718 312 421 204 166 258 429 598 488 Hop . | . . . . . . . . . . . . . . . . Pick Up 110 | 6 26 17 2 5 . 3 20 2 . 1 1 1 16 4 6 Fast Attach 84 | 6 2 7 . . . . 5 5 5 2 5 2 11 9 25 Attach 53 | . . 1 2 1 2 1 9 6 8 1 1 1 9 2 9 Detach 26 | . 1 1 . . . . 1 3 3 1 5 . 8 . 3 Swap 80 | . 4 13 1 14 . 3 13 4 . 7 . 2 3 10 6 Drop 136 | . 10 31 5 15 . 2 23 1 1 2 . . 19 14 13 Fire 491 | . 34 64 . 39 . 7 116 44 44 12 9 7 31 35 49 Melee 127 | . . . . . . . 3 . . . . . 3 62 59 Ram 1 | . . . . 1 . . . . . . . . . . . Kick . | . . . . . . . . . . . . . . . . Crush 1 | . . . . . . . 1 . . . . . . . . Escape Stasis 32 | . . . . . . . 5 . . . . . . 27 . Rewire 215 | . . . . . . 1 . . . . . . . 214 . Trap 2 | . . . . . . . . . 2 . . . . . . Miscellaneous . | . . . . . . . . . . . . . . . . Route ------- -11/Scrapyard -10/Materials (discovered 3 exits: [*Mat x2] / [*Min]) -9/Materials (discovered 2 exits: [*Mat] / [*Min]) -8/Materials -8/Storage -7/Factory -7/DSF -6/Factory -5/Factory -5/Upper Caves -5/Upper Caves -5/Zhirov -4/Proximity Caves -4/Factory -4/Extension (discovered 2 exits: *Res / [*Cet]) -3/Research (discovered 1 exit: [*Res]) History --------- Turn | Location | Event 31 | -11/Scrapyard | Discovered new exit (range 16) 66 | -11/Scrapyard | Entered Materials 315 | -10/Materials | Build established: Mutant 350 | -10/Materials | Discovered new exit (range 16) 561 | -10/Materials | Discovered new exit (range 15) 694 | -10/Materials | Discovered new exit (range 8) 779 | -10/Materials | Entered another Materials area 779 | -9/Materials | Evolved 2 slots: Propulsion x2 1506 | -9/Materials | Discovered new exit (range 11) 1889 | -9/Materials | Discovered new exit (range 4) 1912 | -9/Materials | Entered another Materials area 1912 | -8/Materials | Evolved 2 slots: Utility x2 1914 | -8/Materials | Discovered new exit (range 9) 1993 | -8/Materials | Entered Storage 2315 | -8/Storage | Found Prototype Processor 2520 | -8/Storage | Build established: Scavenger-Mutant 2583 | -8/Storage | Identified exit to Factory 2586 | -8/Storage | Assisted by bots powering up and referring to "LRC-V3" 2679 | -8/Storage | Entered Factory 2679 | -7/Factory | Accompanied by 9 allies 2679 | -7/Factory | Evolved 2 slots: Propulsion x1, Utility x1 2685 | -7/Factory | Identified exit to DSF 2693 | -7/Factory | Entered DSF 2693 | -7/DSF | Accompanied by 9 allies 2728 | -7/DSF | Additional patrols routed to DSF 2773 | -7/DSF | Discovered new exit (range 16) 2917 | -7/DSF | Entered Factory 2917 | -6/Factory | Evolved 2 slots: Propulsion x1, Utility x1 2918 | -6/Factory | Identified Exp. Targeting Computer 3086 | -6/Factory | Build established: Mutant 3208 | -6/Factory | Spotted B-75 Beast 4376 | -6/Factory | Repaired Lgt. Treads 4680 | -6/Factory | Repaired Med. Armor Plating 5367 | -6/Factory | First assault squad dispatched 5619 | -6/Factory | Build established: Scavenger-Mutant 5684 | -6/Factory | Discovered new exit (range 3) 5739 | -6/Factory | Entered another Factory area 5739 | -5/Factory | Evolved 2 slots: Utility x2 5958 | -5/Factory | Repaired Imp. Light Armor Plating 6170 | -5/Factory | Garrison activated, responded to threat 6249 | -5/Factory | Spotted B-75 Beast 6250 | -5/Factory | Build established: Mutant 6407 | -5/Factory | Repaired Arm. Huge Wheel 6435 | -5/Factory | Discovered new exit (range 17) 6492 | -5/Factory | Entered Upper Caves 6547 | -5/Upper Caves | Lost 4 parts (1n3u) 6676 | -5/Upper Caves | Lost 4 parts (2n2w) 6939 | -5/Upper Caves | Build established: Scavenger-Mutant 7007 | -5/Upper Caves | Learned Factory stockpile data 7032 | -5/Upper Caves | Discovered new exit (range 10) 7090 | -5/Upper Caves | Entered another Upper Caves area 7353 | -5/Upper Caves | Discovered new exit (range 13) 7356 | -5/Upper Caves | Learned 4 Factory zone layouts 7372 | -5/Upper Caves | Entered Zhirov 7372 | -5/Zhirov | Discovered new exit (range 3) 7441 | -5/Zhirov | Found Alien Artifact 7441 | -5/Zhirov | Identified Integrated Reactor 7441 | -5/Zhirov | Installed Integrated Reactor, increased core energy generation (+10) 7452 | -5/Zhirov | Found Alien Artifact 7565 | -5/Zhirov | Entered Proximity Caves 7659 | -4/Proximity Caves | Learned location of Quarantine (-2) 7784 | -4/Proximity Caves | Attracted the attention of an 0b10 checkpoint 7848 | -4/Proximity Caves | Discovered new exit (range 8) 7866 | -4/Proximity Caves | Entered Factory 7866 | -4/Factory | Evolved 2 slots: Power x1, Weapon x1 8028 | -4/Factory | Found Prototype Processor 8028 | -4/Factory | Identified Exp. Melee Analysis Suite 8150 | -4/Factory | Build established: Scavenger-Gunner 8263 | -4/Factory | Garrison activated, responded to threat 8317 | -4/Factory | Spotted B-86 Titan 8378 | -4/Factory | Destroyed B-86 Titan 8394 | -4/Factory | Lost 10 parts (3p3n2u2w) 8501 | -4/Factory | Fabricated Enh. Quantum Rifle? 8538 | -4/Factory | Discovered new exit (range 10) 8546 | -4/Factory | Entered Extension 8717 | -4/Extension | Destroyed 7 combat bots 8977 | -4/Extension | Build established: Scavenger-Mutant 8985 | -4/Extension | Energy Cycler disabled 8986 | -4/Extension | Rescued a captive Derelict 8986 | -4/Extension | Rescued a captive Derelict 8987 | -4/Extension | Rescued a captive Derelict 8987 | -4/Extension | Rescued a captive Derelict 8988 | -4/Extension | Rescued a captive Derelict 8989 | -4/Extension | Rescued a captive Derelict 8989 | -4/Extension | Rescued a captive Derelict 8989 | -4/Extension | Rescued a captive Derelict 8994 | -4/Extension | Rescued a captive Derelict 8995 | -4/Extension | Rescued a captive Derelict 8997 | -4/Extension | Rescued a captive Derelict 9117 | -4/Extension | P-70 Sage assimilated allied AS-QJ0(g) 9121 | -4/Extension | P-70 Sage assimilated allied 6A-OF7(g) 9284 | -4/Extension | Extracted ID and sensor layout for unrecognized location from A7's data core 9353 | -4/Extension | Spotted B-86 Titan 9371 | -4/Extension | Disrupted transfer network 9739 | -4/Extension | Discovered new exit (range 10) 9742 | -4/Extension | Discovered new exit (range 6) 9773 | -4/Extension | Disrupted transfer network 9780 | -4/Extension | Entered Research 9780 | -3/Research | Evolved 2 slots: Utility x2 9826 | -3/Research | Found Enh. Force Lance 9828 | -3/Research | Found Enh. Force Lance 10114 | -3/Research | Lost 3 parts (1p2u) 10529 | -3/Research | Core integrity fell below 50% 10536 | -3/Research | System corruption reached 10% 10545 | -3/Research | Core integrity fell below 20% 10554 | -3/Research | Lost 20 parts (2p6n9u3w) 10756 | -3/Research | Spotted B-86 Titan 10791 | -3/Research | Discovered new exit (range 15) 10823 | -3/Research | Destroyed by G-67 Veteran with Field Laser Last Messages --------------- 10729_ Acquired 10 matter. 10754_ B%&C2SVY6XE1UMD&VIZ0IFYV0/DMAG #AYJFW 10771_ 2S9,,/TSR0SF7PW=M|LRA<5M0Y5SY